fUSD/lending_fUSD_20250811
["ID","MTS","AMOUNT","RATE_DAILY","PERIOD"]
[378523070,1754895048172,-523.0,0.00019809,2]
[378523071,1754895048181,-183.35,0.0001981,2]
[378523072,1754895048190,-183.35,0.0001982,2]
[378523073,1754895048199,-183.35,0.0001983,2]
[378523075,1754895048209,-183.35,0.00019841,2]
[378523076,1754895048218,-183.35,0.00019851,2]
[378523078,1754895048227,-183.35,0.00019862,2]
[378523080,1754895048236,-404.06,0.00019863,2]
[378523081,1754895048246,-180.42,0.00019867,2]
[378523084,1754895048256,-183.35,0.00019872,2]
[378523086,1754895048266,-253.59439474,0.00019875,2]
[378523087,1754895048275,-459.84652961,0.00019875,2]
[378523089,1754895048285,-187.93635171,0.00019875,2]
[378523090,1754895048295,-500.0,0.00019875,2]
[378523091,1754895048304,-500.0,0.00019875,2]
[378523092,1754895048314,-608.89397883,0.00019875,2]
[378523093,1754895048324,-183.35,0.00019882,2]
[378523094,1754895048334,-183.35,0.00019893,2]
[378523095,1754895048343,-183.35,0.00019903,2]
[378523096,1754895048354,-500.0,0.00019908,2]
[378523098,1754895048364,-700.0,0.00019908,2]
[378523100,1754895048374,-865.0,0.00019908,2]
[378523102,1754895048384,-183.35,0.00019914,2]
[378523103,1754895048394,-183.35,0.00019924,2]
[378523104,1754895048404,-1990.79895795,0.00019925,2]
[378523105,1754895048413,-500.0,0.00019931,2]
[378523106,1754895048424,-1076.0,0.00019931,2]
[378523107,1754895048434,-500.0,0.00019931,2]
[378523108,1754895048443,-500.0,0.00019931,2]
[378523109,1754895048453,-183.35,0.00019934,2]
[378523110,1754895048462,-587.0,0.00019944,2]
[378523111,1754895048471,-183.35,0.00019945,2]
[378523112,1754895048480,-183.35,0.00019955,2]
[378523113,1754895048489,-183.35,0.00019966,2]
[378523114,1754895048499,-183.35,0.00019976,2]
[378523115,1754895048508,-500.0,0.0001998,2]
[378523116,1754895048517,-183.35,0.00019987,2]
[378523117,1754895048527,-2000.0,0.0002,2]
[378523118,1754895048536,-4014.11958342,0.0002,2]
[378523119,1754895048546,-1289.58892491,0.00020027,2]
[378523120,1754895048555,-160.0,0.00020065,2]
[378523121,1754895048564,-842.86497659,0.00020065,2]
[378523122,1754895048574,-211.73953792,0.00020065,2]
[378523123,1754895048583,-457.87080987,0.00020065,2]
[378523124,1754895048592,-150.0,0.00020127,2]
[378523125,1754895048602,-2351.0,0.00020144,2]
[378523126,1754895048611,-500.0,0.00020149,2]
[378523127,1754895048621,-515.90802813,0.00020149,2]
[378523128,1754895048630,-1500.0,0.00020171,2]
[378523129,1754895048639,-500.0,0.00020182,2]
[378523130,1754895048649,-700.0,0.00020182,2]
[378523131,1754895048658,-865.0,0.00020182,2]
[378523132,1754895048667,-279.67,0.00020187,2]
[378523133,1754895048676,-500.0,0.00020205,2]
[378523134,1754895048685,-1076.0,0.00020205,2]
[378523135,1754895048694,-500.0,0.00020205,2]
[378523136,1754895048703,-500.0,0.00020205,2]
[378523137,1754895048713,-169.23,0.00020209,2]
[378523138,1754895048722,-290.0,0.00020247,2]
[378523139,1754895048731,-600.0,0.00020262,2]
[378523140,1754895048740,-350.9,0.00020262,2]
[378523141,1754895048749,-160.0,0.00020264,2]
[378523142,1754895048757,-248.71531821,0.00020264,2]
[378523143,1754895048766,-490.44011339,0.00020264,2]
[378523144,1754895048775,-203.55279596,0.00020272,2]
[378523145,1754895048785,-150.0,0.0002033,2]
[378523146,1754895048794,-150.0,0.00020356,2]
[378523147,1754895048804,-1990.79895795,0.00020367,2]
[378523148,1754895048814,-3367.0,0.00020372,2]
[378523149,1754895048823,-957.0,0.00020372,2]
[378523150,1754895048832,-1253.0,0.00020372,2]
[378523151,1754895048841,-810.0,0.00020372,2]
[378523152,1754895048851,-1295.0,0.00020372,2]
[378523153,1754895048860,-2027.0,0.00020372,2]
[378523154,1754895048869,-661.542,0.00020372,2]
[378523155,1754895048880,-1654.0,0.00020372,2]
[378523156,1754895048890,-21461.0,0.00020372,2]
[378523157,1754895048899,-6082.0,0.00020372,2]
[378523158,1754895048908,-716.0,0.00020372,2]
[378523159,1754895048918,-4145.0,0.00020372,2]
[378523160,1754895048927,-500.0,0.00020423,2]
[378523161,1754895048936,-265.47052633,0.00020456,2]
[378523162,1754895048946,-700.0,0.00020456,2]
[378523163,1754895048956,-865.0,0.00020456,2]
[378523164,1754895048965,-500.0,0.00020479,2]
[378523165,1754895048975,-1076.0,0.00020479,2]
[378523166,1754895048984,-500.0,0.00020479,2]
[378523167,1754895048993,-500.0,0.00020479,2]
[378523168,1754895049003,-21010.22,0.00020548,2]
[378523169,1754895049012,-180.42,0.0002056,2]
[378523170,1754895049022,-3808.45,0.0002062,2]
[378523171,1754895049034,-257.63,0.0002063,2]
[378523172,1754895049043,-199.41,0.0002064,2]
[378523173,1754895049052,-234.3131345,0.0002064,2]
[378523174,1754895049062,-214.69976139,0.00020645,2]
[378523175,1754895049073,-500.0,0.00020697,2]
[378523176,1754895049082,-706.58278267,0.00020719,2]
[378523177,1754895049092,-700.0,0.0002073,2]
[378523178,1754895049102,-865.0,0.0002073,2]
[378523179,1754895049112,-500.0,0.00020753,2]
[378523180,1754895049121,-1076.0,0.00020753,2]
[378523181,1754895049132,-500.0,0.00020753,2]
[378523182,1754895049141,-500.0,0.00020753,2]
[378523183,1754895049150,-1990.79895795,0.00020809,2]
[378523184,1754895049160,-1000.0,0.00020836,2]
[378523185,1754895049169,-811.48,0.00020853,2]
[378523186,1754895049178,-400.0,0.0002097,2]
[378523187,1754895049187,-585.40857936,0.0002097,2]
[378523188,1754895049197,-1301.86759728,0.0002097,2]
[378523189,1754895049206,-500.0,0.00020971,2]
[378523190,1754895049215,-700.0,0.00020974,2]
[378523191,1754895049225,-700.0,0.00020974,2]
[378523192,1754895049234,-700.0,0.00020974,2]
[378523193,1754895049244,-700.0,0.00020974,2]
[378523194,1754895049254,-700.0,0.00020974,2]
[378523195,1754895049272,-700.0,0.00020974,2]
[378523196,1754895049287,-700.0,0.00020974,2]
[378523197,1754895049296,-700.0,0.00020974,2]
[378523198,1754895049305,-1000.0,0.00020999,2]
[378523199,1754895049315,-500.0,0.00021004,2]
[378523200,1754895049323,-700.0,0.00021004,2]
[378523201,1754895049333,-865.0,0.00021004,2]
[378523202,1754895049342,-500.0,0.00021014,2]
[378523203,1754895049352,-500.0,0.00021027,2]
[378523204,1754895049361,-1076.0,0.00021027,2]
[378523205,1754895049370,-500.0,0.00021027,2]
[378523206,1754895049380,-500.0,0.00021027,2]
[378523207,1754895049389,-1018.85,0.00021128,2]
[378523208,1754895049399,-179.0,0.00021151,4]
[378523209,1754895049408,-3711.653,0.00021235,2]
[378523210,1754895049417,-236.069,0.00021235,2]
[378523211,1754895049426,-500.0,0.00021245,2]
[378523212,1754895049436,-1990.79895795,0.00021251,2]
[378523213,1754895049445,-180.42,0.00021253,2]
[378523214,1754895049455,-700.0,0.00021278,2]
[378523215,1754895049464,-865.0,0.00021278,2]
[378523216,1754895049473,-500.0,0.00021301,2]
[378523217,1754895049482,-1076.0,0.00021301,2]
[378523218,1754895049491,-500.0,0.00021301,2]
[378523219,1754895049500,-500.0,0.00021301,2]
[378523220,1754895049509,-528.28,0.00021342,2]
[378523221,1754895049519,-1337.30371513,0.00021396,2]
[378523222,1754895049528,-209.57,0.00021409,2]
[378523223,1754895049537,-150.0,0.00021459,2]
[378523224,1754895049546,-500.0,0.00021467,2]
[378523225,1754895049555,-4850.0,0.00021468,2]
[378523226,1754895049564,-371.23171434,0.00021519,2]
[378523227,1754895049573,-528.28,0.00021534,2]
[378523228,1754895049582,-700.0,0.00021552,2]
[378523229,1754895049591,-865.0,0.00021552,2]
[378523230,1754895049600,-500.0,0.00021575,2]
[378523231,1754895049610,-1076.0,0.00021575,2]
[378523232,1754895049619,-500.0,0.00021575,2]
[378523233,1754895049628,-500.0,0.00021575,2]
[378523234,1754895049638,-1163.78,0.00021594,2]
[378523235,1754895049648,-160.0,0.00021633,2]
[378523236,1754895049658,-257.91778498,0.00021633,2]
[378523237,1754895049667,-1990.79895795,0.00021694,2]
[378523238,1754895049677,-528.28,0.00021725,2]
[378523239,1754895049686,-823.0,0.0002179,2]
[378523240,1754895049695,-700.0,0.00021826,2]
[378523241,1754895049704,-865.0,0.00021826,2]
[378523242,1754895049713,-500.0,0.00021849,2]
[378523243,1754895049723,-1076.0,0.00021849,2]
[378523244,1754895049732,-500.0,0.00021849,2]
[378523245,1754895049741,-500.0,0.00021849,2]
[378523246,1754895049751,-1000.0,0.00021899,2]
[378523247,1754895049760,-2688.04,0.00021917,2]
[378523248,1754895049770,-5000.0,0.00021918,2]
[378523249,1754895049779,-666.0,0.00021918,3]
[378523250,1754895049788,-1000.0,0.00021918,2]
[378523251,1754895049798,-1000.0,0.00021918,2]
[378523252,1754895049808,-1000.0,0.00021918,2]
[378523253,1754895049818,-1000.0,0.00021918,2]
[378523254,1754895049828,-1000.0,0.00021918,2]
[378523255,1754895049837,-1657.77003173,0.00021918,2]
[378523256,1754895049847,-150.0,0.00021918,2]
[378523257,1754895049857,-500.0,0.00021918,2]
[378523258,1754895049866,-150.0,0.00021918,2]
[378523259,1754895049876,-150.0,0.00021918,2]
[378523260,1754895049885,-150.0,0.00021918,2]
[378523261,1754895049895,-200.0,0.00022,3]
[378523262,1754895049904,-1000.0,0.00022015,2]
[378523263,1754895049913,-3808.45,0.00022062,2]
[378523264,1754895049923,-700.0,0.000221,2]
[378523265,1754895049933,-865.0,0.000221,2]
[378523266,1754895049943,-3292.0,0.00022117,2]
[378523267,1754895049952,-500.0,0.00022123,2]
[378523268,1754895049962,-1076.0,0.00022123,2]
[378523269,1754895049973,-500.0,0.00022123,2]
[378523270,1754895049983,-500.0,0.00022123,2]
[378523271,1754895049992,-1990.79895795,0.00022136,2]
[378523272,1754895050002,-523.0,0.00022173,5]
[378523273,1754895050011,-500.0,0.00022192,2]
[378523274,1754895050022,-150.0,0.00022192,2]
[378523275,1754895050039,-150.0,0.00022192,2]
[378523276,1754895050049,-500.0,0.00022374,2]
[378523277,1754895050059,-700.0,0.00022374,2]
[378523278,1754895050069,-865.0,0.00022374,2]
[378523279,1754895050079,-500.0,0.00022397,2]
[378523280,1754895050088,-1076.0,0.00022397,2]
[378523281,1754895050098,-341.03853985,0.00022397,2]
[378523282,1754895050108,-447.92152814,0.00022397,2]
[378523283,1754895050118,-500.0,0.00022466,2]
[378523284,1754895050127,-150.0,0.00022466,2]
[378523285,1754895050138,-150.46988948,0.00022466,2]
[378523286,1754895050148,-1695.18,0.00022554,2]
[378523287,1754895050158,-1990.79895795,0.00022578,2]
[378523288,1754895050167,-404.06,0.00022603,2]
[378523289,1754895050177,-700.0,0.00022648,2]
[378523290,1754895050187,-865.0,0.00022648,2]
[378523291,1754895050197,-365.74410789,0.00022671,2]
[378523292,1754895050207,-1076.0,0.00022671,2]
[378523293,1754895050217,-2000.0,0.000227,2]
[378523294,1754895050227,-500.0,0.0002274,2]
[378523295,1754895050236,-150.0,0.0002274,2]
[378523296,1754895050246,-1386.78395259,0.00022765,2]
[378523297,1754895050255,-186012.1199467,0.0002284,2]
[378523298,1754895050265,-500.0,0.00022873,2]
[378523299,1754895050274,-500.0,0.00022873,2]
[378523300,1754895050284,-500.0,0.00022873,2]
[378523301,1754895050293,-165.29135572,0.00022873,2]
[378523302,1754895050303,-500.0,0.00022873,2]
[378523303,1754895050312,-500.98663761,0.00022873,2]
[378523304,1754895050321,-500.0,0.00022873,2]
[378523305,1754895050495,-500.0,0.00022873,2]
[378523306,1754895050508,-500.0,0.00022873,2]
[378523307,1754895050518,-500.0,0.00022873,2]
[378523308,1754895050529,-500.0,0.00022873,2]
[378523309,1754895050543,-500.0,0.00022873,2]
[378523310,1754895050552,-500.0,0.00022873,2]
[378523311,1754895050563,-500.0,0.00022873,2]
[378523312,1754895050573,-500.0,0.00022873,2]
[378523313,1754895050584,-500.0,0.00022873,2]
[378523314,1754895050594,-181.39234776,0.00022877,2]
[378523315,1754895050603,-200.0,0.000229,8]
[378523316,1754895050614,-1000.0,0.0002292,2]
[378523317,1754895050624,-700.0,0.00022922,2]
[378523318,1754895050634,-865.0,0.00022922,2]
[378523319,1754895050644,-556.13822857,0.0002294,2]
[378523320,1754895050654,-1076.0,0.00022945,2]
[378523321,1754895050663,-800.22342414,0.00023,2]
[378523322,1754895050674,-842.86497659,0.00023,3]
[378523323,1754895050683,-160.0,0.00023002,2]
[378523324,1754895050693,-267.46074303,0.00023002,2]
[378523325,1754895050703,-500.0,0.00023014,2]
[378523326,1754895050714,-150.0,0.00023014,2]
[378523327,1754895050726,-1990.79895795,0.0002302,2]
[378523328,1754895050746,-200.0,0.000231,7]
[378523329,1754895050756,-320.18171086,0.0002317,2]
[378523330,1754895050766,-5396.7279,0.0002317,2]
[378523331,1754895050776,-811.48,0.0002317,2]
[378523332,1754895050786,-700.0,0.00023196,2]
[378523333,1754895050795,-865.0,0.00023196,2]
[378523334,1754895050805,-1076.0,0.00023219,2]
[378523335,1754895050815,-500.0,0.00023288,2]
[378523336,1754895050826,-249.33468066,0.00023288,2]
[378523337,1754895050835,-181.0,0.00023342,9]
[378523338,1754895050846,-500.0,0.00023365,2]
[378523339,1754895050856,-500.0,0.00023365,2]
[378523340,1754895050866,-500.0,0.00023365,2]
[378523341,1754895050876,-500.0,0.00023365,2]
[378523342,1754895050886,-500.0,0.00023365,2]
[378523343,1754895050896,-500.0,0.00023365,2]
[378523344,1754895050906,-500.0,0.00023365,2]
[378523345,1754895050916,-500.0,0.00023365,2]
[378523346,1754895050925,-500.0,0.00023365,2]
[378523347,1754895050935,-500.0,0.00023365,2]
[378523348,1754895050944,-500.0,0.00023365,2]
[378523349,1754895050954,-500.0,0.00023365,2]
[378523350,1754895050964,-500.0,0.00023365,2]
[378523351,1754895050974,-500.0,0.00023365,2]
[378523352,1754895050983,-500.0,0.00023365,2]
[378523353,1754895050993,-500.0,0.00023365,2]
[378523354,1754895051002,-500.0,0.00023365,2]
[378523355,1754895051012,-500.0,0.00023365,2]
[378523356,1754895051025,-500.0,0.00023365,2]
[378523357,1754895051035,-500.0,0.00023365,2]
[378523358,1754895051044,-500.0,0.00023365,2]
[378523359,1754895051054,-500.0,0.00023365,2]
[378523360,1754895051063,-500.0,0.00023365,2]
[378523361,1754895051073,-500.0,0.00023365,2]
[378523362,1754895051082,-500.0,0.00023365,2]
[378523363,1754895051092,-500.0,0.00023365,2]
[378523364,1754895051103,-500.0,0.00023365,2]
[378523365,1754895051112,-500.0,0.00023365,2]
[378523366,1754895051121,-500.0,0.00023365,2]
[378523367,1754895051132,-500.0,0.00023365,2]
[378523368,1754895051142,-500.0,0.00023365,2]
[378523369,1754895051152,-500.0,0.00023365,2]
[378523370,1754895051162,-500.0,0.00023365,2]
[378523371,1754895051171,-500.0,0.00023365,2]
[378523372,1754895051181,-500.0,0.00023365,2]
[378523373,1754895051190,-500.0,0.00023365,2]
[378523374,1754895051200,-500.0,0.00023365,2]
[378523375,1754895051209,-500.0,0.00023365,2]
[378523376,1754895051218,-500.0,0.00023365,2]
[378523377,1754895051228,-500.0,0.00023365,2]
[378523378,1754895051237,-500.0,0.00023365,2]
[378523379,1754895051246,-500.0,0.00023365,2]
[378523380,1754895051255,-500.0,0.00023365,2]
[378523381,1754895051264,-500.0,0.00023365,2]
[378523382,1754895051274,-500.0,0.00023365,2]
[378523383,1754895051283,-500.0,0.00023365,2]
[378523384,1754895051292,-500.0,0.00023365,2]
[378523385,1754895051301,-500.0,0.00023365,2]
[378523386,1754895051311,-500.0,0.00023365,2]
[378523387,1754895051320,-500.0,0.00023365,2]
[378523388,1754895051329,-500.0,0.00023365,2]
[378523389,1754895051339,-500.0,0.00023365,2]
[378523390,1754895051347,-500.0,0.00023365,2]
[378523391,1754895051356,-500.0,0.00023365,2]
[378523392,1754895051363,-500.0,0.00023365,2]
[378523393,1754895051373,-500.0,0.00023365,2]
[378523394,1754895051382,-500.0,0.00023365,2]
[378523395,1754895051391,-500.0,0.00023365,2]
[378523396,1754895051400,-500.0,0.00023365,2]
[378523397,1754895051409,-500.0,0.00023365,2]
[378523398,1754895051417,-500.0,0.00023365,2]
[378523399,1754895051427,-500.0,0.00023365,2]
[378523400,1754895051435,-500.0,0.00023365,2]
[378523401,1754895051443,-500.0,0.00023365,2]
[378523402,1754895051452,-500.0,0.00023365,2]
[378523403,1754895051461,-500.0,0.00023365,2]
[378523404,1754895051471,-500.0,0.00023365,2]
[378523405,1754895051479,-500.0,0.00023365,2]
[378523406,1754895051488,-500.0,0.00023365,2]
[378523407,1754895051497,-500.0,0.00023365,2]
[378523408,1754895051506,-500.0,0.00023365,2]
[378523409,1754895051515,-500.0,0.00023365,2]
[378523410,1754895051524,-500.0,0.00023365,2]
[378523411,1754895051534,-500.0,0.00023365,2]
[378523412,1754895051543,-500.0,0.00023365,2]
[378523413,1754895051553,-500.0,0.00023365,2]
[378523414,1754895051562,-500.0,0.00023365,2]
[378523415,1754895051571,-500.0,0.00023365,2]
[378523416,1754895051580,-500.0,0.00023365,2]
[378523417,1754895051590,-500.0,0.00023365,2]
[378523418,1754895051599,-500.0,0.00023365,2]
[378523419,1754895051608,-500.0,0.00023365,2]
[378523420,1754895051617,-500.0,0.00023365,2]
[378523421,1754895051627,-500.0,0.00023365,2]
[378523422,1754895051636,-500.0,0.00023365,2]
[378523423,1754895051645,-500.0,0.00023365,2]
[378523424,1754895051654,-500.0,0.00023365,2]
[378523425,1754895051663,-500.0,0.00023365,2]
[378523426,1754895051673,-500.0,0.00023365,2]
[378523427,1754895051682,-500.0,0.00023365,2]
[378523428,1754895051691,-500.0,0.00023365,2]
[378523429,1754895051700,-500.0,0.00023365,2]
[378523430,1754895051709,-500.0,0.00023365,2]
[378523431,1754895051718,-582.0,0.00023365,2]
[378523432,1754895051727,-500.0,0.00023365,2]
[378523433,1754895051737,-500.0,0.00023365,2]
[378523434,1754895051747,-500.0,0.00023365,2]
[378523435,1754895051756,-500.0,0.00023365,2]
[378523436,1754895051765,-500.0,0.00023365,2]
[378523437,1754895051774,-500.0,0.00023365,2]
[378523438,1754895051784,-500.0,0.00023365,2]
[378523439,1754895051793,-500.0,0.00023365,2]
[378523440,1754895051803,-500.0,0.00023365,2]
[378523441,1754895051812,-500.0,0.00023365,2]
[378523442,1754895051821,-500.0,0.00023365,2]
[378523443,1754895051831,-500.0,0.00023365,2]
[378523444,1754895051840,-500.0,0.00023365,2]
[378523445,1754895051849,-500.0,0.00023365,2]
[378523446,1754895051858,-500.0,0.00023365,2]
[378523447,1754895051868,-500.0,0.00023365,2]
[378523448,1754895051878,-500.0,0.00023365,2]
[378523449,1754895051888,-500.0,0.00023365,2]
[378523450,1754895051896,-500.0,0.00023365,2]
[378523451,1754895051905,-500.0,0.00023365,2]
[378523452,1754895051915,-500.0,0.00023365,2]
[378523453,1754895051924,-500.0,0.00023365,2]
[378523454,1754895051933,-500.0,0.00023365,2]
[378523455,1754895051942,-500.0,0.00023365,2]
[378523456,1754895051951,-500.0,0.00023365,2]
[378523457,1754895051960,-500.0,0.00023365,2]
[378523458,1754895051969,-606.0,0.00023365,2]
[378523459,1754895051978,-400.0,0.0002337,2]
[378523460,1754895051988,-700.0,0.0002337,2]
[378523461,1754895051997,-3367.0,0.00023372,2]
[378523462,1754895052006,-957.0,0.00023372,2]
[378523463,1754895052015,-1253.0,0.00023372,2]
[378523464,1754895052027,-810.0,0.00023372,2]
[378523465,1754895052037,-1295.0,0.00023372,2]
[378523466,1754895052047,-2027.0,0.00023372,2]
[378523467,1754895052056,-598.0,0.00023372,2]
[378523468,1754895052067,-1654.0,0.00023372,2]
[378523469,1754895052076,-14396.392,0.00023372,2]
[378523470,1754895052086,-6082.0,0.00023372,2]
[378523471,1754895052096,-716.0,0.00023372,2]
[378523472,1754895052107,-4145.0,0.00023372,2]
[378523473,1754895052118,-621.0,0.00023372,2]
[378523474,1754895052128,-245.7187902,0.000234,2]
[378523475,1754895052137,-200.0,0.000234,2]
[378523476,1754895052147,-1216.0,0.000234,2]
[378523477,1754895052156,-1216.0,0.000234,2]
[378523479,1754895052166,-158.0,0.000234,2]
[378523480,1754895052176,-158.0,0.000234,2]
[378523481,1754895052185,-161.87040762,0.000234,2]
[378523482,1754895052195,-153.0,0.000234,2]
[378523483,1754895052205,-153.0,0.000234,2]
[378523484,1754895052215,-153.0,0.000234,2]
[378523485,1754895052224,-153.0,0.000234,2]
[378523486,1754895052234,-153.0,0.000234,2]
[378523487,1754895052243,-153.0,0.000234,2]
[378523488,1754895052253,-153.0,0.000234,2]
[378523489,1754895052262,-153.0,0.000234,2]
[378523490,1754895052271,-153.0,0.000234,2]
[378523491,1754895052281,-153.0,0.000234,2]
[378523492,1754895052290,-153.0,0.000234,2]
[378523493,1754895052300,-153.0,0.000234,2]
[378523494,1754895052310,-153.0,0.000234,2]
[378523495,1754895052319,-153.0,0.000234,2]
[378523496,1754895052328,-153.0,0.000234,2]
[378523497,1754895052338,-153.0,0.000234,2]
[378523498,1754895052347,-153.0,0.000234,2]
[378523499,1754895052356,-153.0,0.000234,2]
[378523500,1754895052366,-153.0,0.000234,2]
[378523501,1754895052375,-153.0,0.000234,2]
[378523502,1754895052385,-153.0,0.000234,2]
[378523503,1754895052395,-153.0,0.000234,2]
[378523504,1754895052404,-1000.71931818,0.00023421,2]
[378523505,1754895052413,-1000.0,0.00023421,2]
[378523506,1754895052423,-510.67229616,0.00023421,2]
[378523507,1754895052432,-707.21940402,0.00023421,2]
[378523508,1754895052441,-1000.0,0.00023421,2]
[378523509,1754895052451,-1000.0,0.00023421,2]
[378523510,1754895052460,-1141.11991256,0.00023421,2]
[378523511,1754895052470,-1000.0,0.00023421,2]
[378523512,1754895052479,-581.41279628,0.00023421,2]
[378523513,1754895052489,-258.99521982,0.00023421,2]
[378523514,1754895052498,-1000.0,0.00023421,2]
[378523515,1754895052507,-1000.0,0.00023421,2]
[378523516,1754895052516,-1000.0,0.00023421,2]
[378523517,1754895052526,-14905.0660284,0.00023425,2]
[378523518,1754895052535,-1990.79895795,0.00023463,2]
[378523519,1754895052544,-700.0,0.00023469,2]
[378523520,1754895052554,-865.0,0.00023469,2]
[378523521,1754895052563,-1076.0,0.00023492,2]
[378523522,1754895052573,-200.0,0.000235,2]
[378523523,1754895052582,-858.66841671,0.00023504,2]
[378523524,1754895052602,-2252.38684537,0.00023504,2]
[378523525,1754895052674,-697.39473792,0.00023504,2]
[378523526,1754895052685,-200.0,0.0002351,7]
[378523527,1754895052696,-160.30038782,0.00023562,2]
[378523528,1754895052706,-362.06893856,0.00023562,2]
[378523529,1754895052716,-501.01111572,0.00023562,2]
[378523530,1754895052725,-160.24718503,0.00023562,2]
[378523531,1754895052736,-500.0,0.00023562,2]
[378523532,1754895052745,-500.22252914,0.00023562,2]
[378523533,1754895052755,-500.0,0.00023562,2]
[378523534,1754895052765,-1376.81,0.00023607,2]
[378523535,1754895052775,-200.0,0.00023634,2]
[378523536,1754895053134,-500.0,0.00023743,2]
[378523537,1754895053145,-700.0,0.00023743,2]
[378523538,1754895053155,-865.0,0.00023743,2]
[378523539,1754895053164,-3156.94510572,0.00023748,3]
[378523577,1754895125305,-356.35691579,0.00016696,2]
[378523578,1754895125334,-388.84007114,0.00016696,2]
[378523579,1754895125365,-500.0,0.00016696,2]
[378523580,1754895125394,-500.0,0.00016696,2]
[378523581,1754895125728,-268.79135324,0.00016696,2]
[378523618,1754895226454,-72.44192764,0.00016534,2]
[378523631,1754895244581,-400.0,0.00016534,2]
[378523988,1754895526037,266.92,0.00013699,2]
[378524025,1754895542288,250.0,0.00015,2]
[378524050,1754895559210,129.88,0.00015001,2]
[378524051,1754895559234,400.0,0.00015001,2]
[378524052,1754895559274,400.0,0.00015001,2]
[378524053,1754895559296,70.12,0.00015001,2]
[378524123,1754895604362,-184.77798799,0.00016484,2]
[378524124,1754895604423,-1215.05402402,0.000165,2]
[378524129,1754895611352,-250.0,0.00016492,2]
[378524131,1754895611506,-1638.9,0.000165,2]
[378524147,1754895619472,-756.48,0.000165,2]
[378524166,1754895627784,-1.98402402,0.000165,2]
[378524167,1754895627926,-1387.58195196,0.000165,2]
[378524168,1754895635191,-27.55807236,0.00016534,2]
[378524169,1754895635221,-500.0,0.00016534,2]
[378524170,1754895635280,-148.54385528,0.00016534,2]
[378524176,1754895642927,-152.08169291,0.00016434,2]
[378524177,1754895642957,-351.45614472,0.00016534,2]
[378524178,1754895642985,-294.92432474,0.00016534,2]
[378524179,1754895643054,-205.07567526,0.00016534,2]
[378524190,1754895650826,-223.93655079,0.00016534,2]
[378524196,1754895658668,-276.06344921,0.00016534,2]
[378524197,1754895658696,-500.0,0.00016534,2]
[378524199,1754895658798,-317.54,0.00016534,2]
[378524211,1754895667070,-168.0,0.00016534,2]
[378524216,1754895676152,-14.46,0.00016534,2]
[378524217,1754895676197,-221.08,0.00016534,2]
[378524226,1754895683087,-121.08,0.00016534,2]
[378524227,1754895683111,-157.84,0.00016534,2]
[378524237,1754895690888,-247.19491792,0.00016534,2]
[378524260,1754895698794,-13.15412376,0.00016534,2]
[378524261,1754895698856,-189.49413658,0.00016577,2]
[378524369,1754895805015,153.10992471,0.00016494,20]
[378524447,1754895936113,-60.50586342,0.00016577,2]